[Event "3rd Sharjah Challengers 2023"]
[Site "Sharjah"]
[Date "2023.05.25"]
[Round "9.7"]
[White "Socko, Monika"]
[Black "Mammadova, Gulnar"]
[Result "1/2-1/2"]
[ECO "D00"]
[WhiteElo "2406"]
[BlackElo "2349"]
[Annotator "TA"]
[PlyCount "48"]
[EventDate "2023.05.16"]
[EventType "swiss"]
[EventCountry "UAE"]
[SourceTitle "playchess.com"]
[Source "ChessBase"]
[SourceQuality "1"]
[TimeControl "5400+30"]

{[%evp 9,48,0,4,0,0,-20,-22,-16,-6,-10,0,-4,0,19,10,7,3,9,11,10,6,10,16,14,10,17,14,10,10,10,10,10,15,6,6,10,10,11,10,15,33]} 1. d4 {[%emt 0:00:03]} Nf6 {[%emt 0:00:12]} 2. Bg5 {[%emt 0:00:05]} d5 {[%emt 0:02:29]} 3. Bxf6 {[%emt 0:00:06]} gxf6 {[%emt 0:00:15]} 4. e3 {[%emt 0:01:44]} e5 {[%emt 0:00:50]} 5. Nf3 {[%emt 0:06:25]} Nc6 {[%emt 0:04:05] The position is equal.} 6. Nc3 {[%emt 0:08:46] D00: 1 d4 d5: Unusual lines.} Be6 {[%emt 0:05:15]} 7. a3 {[%emt 0:01:09]} a6 {[%emt 0:03:28]} 8. Qd2 {[%emt 0:04:02]} Qd7 {[%emt 0:03:57] [#]} 9. Be2 $146 {[%emt 0:06:45]} ({Predecessor:} 9. O-O-O O-O-O 10. h3 Bh6 11. Kb1 Rhe8 12. Na2 exd4 13. Nxd4 Rg8 14. Nxc6 Qxc6 15. Qd4 {1-0 Kfoury,R-Abchee,A Francophone op 2nd 2014 (4)}) 9... e4 {[%emt 0:10:07]} 10. Nh4 {[%emt 0:02:15]} f5 {[%emt 0:03:15]} 11. g3 {[%emt 0:03:42]} f4 {[%emt 0:08:02]} 12. exf4 {[%emt 0:03:01]} Bg7 {[%emt 0:01:47] [#]} 13. f5 $1 {[%emt 0:02:44][%mdl 64] Decoy} Bxf5 {[%emt 0:01:08] Hoping for ...Be6.} 14. Qg5 {[%emt 0:01:51][%csl LRf5,LRg7]} Bg6 {[%emt 0:00:29]} 15. Nxd5 {[%emt 0:16:32] Threatening c3.} h6 {[%emt 0:11:14]} 16. Nf6+ {[%emt 0:04:11]} Bxf6 {[%emt 0:01:44]} 17. Qxf6 {[%emt 0:00:04]} Qxd4 {[%emt 0:00:06]} 18. Qxd4 {[%emt 0:00:51]} Nxd4 {[%emt 0:00:05]} 19. Bd1 {[%emt 0:00:08][%cal Be2d1,Bd1a4,Ba4c2][%mdl 32]} Bh7 {[%emt 0:03:03]} 20. c3 {[%emt 0:00:53]} Nc6 {[%emt 0:01:18][%cal Bd4c6,Bc6e5,Be5c4][%mdl 32]} 21. Ba4 {[%emt 0:05:07]} b5 {[%emt 0:00:13]} 22. Bc2 {[%emt 0:00:05]} O-O-O {[%emt 0:00:47]} 23. Ke2 {[%emt 0:02:57]} Ne5 {[%emt 0:03:22]} 24. Rhd1 {[%emt 0:00:48]} Nc4 {[%emt 0:03:24] A rather calm draw.   Weighted Error Value: White=0.02 (flawless) /Black=0.02 (flawless)} 1/2-1/2

[Event "3rd Sharjah Challengers 2023"]
[Site "Sharjah"]
[Date "2023.05.25"]
[Round "9.8"]
[White "Liyanage, Ranindu Dilshan"]
[Black "Tissir, Mohamed"]
[Result "1-0"]
[ECO "C41"]
[WhiteElo "2342"]
[BlackElo "2354"]
[Annotator "TA"]
[PlyCount "97"]
[EventDate "2023.05.16"]
[EventType "swiss"]
[EventCountry "UAE"]
[SourceTitle "playchess.com"]
[Source "ChessBase"]
[SourceQuality "1"]
[TimeControl "5400+30"]

{[%evp 16,97,22,22,22,19,18,-11,0,-33,18,-7,12,-35,-17,-20,0,-50,-17,-29,-20,-22,95,82,81,76,155,152,309,291,702,275,299,267,281,299,303,283,267,266,335,287,372,398,437,273,281,283,289,290,309,306,305,310,298,285,300,286,306,302,366,332,379,377,416,438,434,403,517,482,573,567,570,584,737,728,671,625,675,731,787,772,897,817]} 1. d4 {[%emt 0:00:20]} d6 {[%emt 0:15:04]} 2. e4 {[%emt 0:02:06]} Nf6 {[%emt 0:02:01]} 3. Nc3 {[%emt 0:00:07]} e5 {[%emt 0:00:05]} 4. Nf3 {[%emt 0:00:41]} exd4 {[%emt 0:02:58]} 5. Nxd4 {[%emt 0:00:23]} Be7 {[%emt 0:00:02]} 6. Be2 {[%emt 0:01:17]} O-O {[%emt 0:00:36]} 7. O-O {[%emt 0:02:31]} Re8 {[%emt 0:02:15]} 8. f4 {[%emt 0:01:49]} Bf8 {[%emt 0:00:06]} 9. Bf3 {[%emt 0:00:35]} Na6 {[%emt 0:01:09] C41: Philidor Defence.} 10. Nb3 {[%emt 0:07:34]} c6 {[%emt 0:00:49][%cal Od6d5]} 11. g4 {[%emt 0:06:46] [#]} h6 $146 {[%emt 0:08:56] The position is equal.} ({Predecessor:} 11... d5 12. exd5 Nxd5 13. Nxd5 cxd5 14. Qxd5 Qxd5 15. Bxd5 Nb4 16. Bf3 Nxc2 17. Rb1 a5 {½-½ Vratonjic,S (2402)-Jevtic,M (2343) SRB-chT Valjevo 2018 (9.4)}) 12. h3 {[%emt 0:09:13][%cal Bh2h3,Bh3h4,Bh4g5][%mdl 32]} Be6 {[%emt 0:09:32]} (12... Nc7 $15) 13. Nd4 {[%emt 0:05:07]} Bc8 {[%emt 0:04:20]} 14. Nde2 {[%emt 0:07:38]} (14. Re1 $11) 14... Nc5 {[%emt 0:03:05]} 15. Ng3 {[%emt 0:00:35]} a5 {[%emt 0:00:11]} 16. a4 {[%emt 0:08:56]} (16. Kg2 $11) 16... Qc7 {[%emt 0:24:08][%cal Od6d5]} 17. h4 {[%emt 0:09:14]} Qd7 {[%emt 0:03:10][%cal Rf6g4]} 18. f5 {[%emt 0:01:50]} Qc7 {[%emt 0:00:11] [#]} (18... d5 $11 {remains equal.} 19. exd5 Bd6) 19. Bf4 $1 $16 {[%emt 0:01:32]} Qb6 {[%emt 0:04:56][%csl LRa4,LRb2,LRe4] ...Ne6+ would be deadly.} 20. Kg2 {[%emt 0:01:42]} Nfd7 {[%emt 0:10:21]} (20... Qxb2 $2 21. Qd2 $18) ({Black should try} 20... d5) 21. g5 {[%emt 0:02:03]} (21. Bxd6 $6 Bxd6 22. Qxd6 Qxb2 $11) 21... hxg5 $2 {[%emt 0:01:35] This costs Black the game.} (21... Qxb2 $2 22. Qd2) (21... Qd8 $16 {keeps fighting.} 22. Be2 (22. Bxd6 hxg5 23. hxg5 Qxg5 $16) 22... b6) 22. hxg5 $18 {[%emt 0:00:07] Black must now prevent Rh1.} g6 $2 {[%emt 0:00:03] [#]} (22... Qxb2 $2 23. Qd2 $18) (22... Ne5 23. Rh1 Qxb2) 23. f6 $2 {[%emt 0:03:34]} (23. Bxd6 Ne5 24. fxg6 Nxg6 $18) (23. fxg6 Ne5 24. Bxe5 Rxe5 25. Bg4) 23... Ne6 {[%emt 0:02:54]} (23... Qxb2 $2 24. Qd2 $18) 24. Qd2 {[%emt 0:01:25] aiming for Be3. Active counter play!} Qd8 {[%emt 0:01:31]} 25. Rh1 {[%emt 0:02:12]} (25. Bxd6 $2 {perishes.} Ne5 26. Rfd1 Bxd6 27. Qxd6 Nf4+ 28. Kf2 Qb6+ 29. Qd4 Nfd3+ 30. Rxd3 Nxd3+ 31. Ke3 Qc7 32. cxd3 Qxg3 $19) 25... Nxf6 {[%emt 0:00:15]} 26. gxf6 {[%emt 0:00:05]} Qxf6 {[%emt 0:00:05]} 27. Be3 {[%emt 0:01:22] Threatens to win with Raf1.} (27. Bxd6 $2 {loses.} Bxd6 28. Nce2 Nf4+ 29. Nxf4 Bxf4 $19) 27... Qe5 {[%emt 0:01:26]} 28. Rad1 {[%emt 0:01:19]} Be7 {[%emt 0:01:36][%cal Bf8e7,Be7f6,Bf6e5][%mdl 32]} 29. Bg4 {[%emt 0:01:18]} Bf6 {[%emt 0:01:07]} 30. Qxd6 {[%emt 0:02:13]} Qxd6 {[%emt 0:00:21]} 31. Rxd6 {[%emt 0:00:06]} Be5 {[%emt 0:00:05]} 32. Rdd1 {[%emt 0:00:48]} Nf4+ {[%emt 0:00:28]} 33. Kf3 {[%emt 0:01:57]} Bxg4+ {[%emt 0:00:15]} 34. Kxg4 {[%emt 0:00:06]} Ne6 {[%emt 0:00:21]} 35. Rd7 {[%emt 0:00:54]} Rad8 {[%emt 0:01:31]} 36. Rhd1 {[%emt 0:00:58]} Rxd7 {[%emt 0:00:26]} 37. Rxd7 {[%emt 0:00:06]} b5 {[%emt 0:00:01]} 38. Nge2 {[%emt 0:02:41]} ({Don't take} 38. axb5 Bxc3 39. bxc3 cxb5 $18) 38... bxa4 {[%emt 0:01:01]} 39. Nxa4 {[%emt 0:00:23]} Rb8 {[%emt 0:00:26]} 40. c3 {[%emt 0:00:30] Wards off Rb4} Re8 {[%emt 0:00:32]} 41. Kf3 {[%emt 0:00:40]} Ng7 {[%emt 0:00:34]} 42. Bd4 {[%emt 0:00:32] White is clearly winning.} Nh5 {[%emt 0:00:01]} 43. Nc5 {[%emt 0:02:22]} Nf6 {[%emt 0:00:19]} 44. Ra7 {[%emt 0:00:12]} g5 {[%emt 0:00:12]} 45. Rxa5 {[%emt 0:00:42]} g4+ {[%emt 0:00:10]} 46. Kg2 {[%emt 0:01:29]} Kh7 {[%emt 0:00:50]} 47. Ng3 {[%emt 0:01:19]} Kg6 {[%emt 0:00:27]} 48. Ra6 {[%emt 0:00:16]} Bxg3 {[%emt 0:01:28]} 49. Bxf6 {[%emt 0:00:31] Weighted Error Value: White=0.32/Black=0.38} 1-0

[Event "3rd Sharjah Challengers 2023"]
[Site "Sharjah"]
[Date "2023.05.25"]
[Round "9.9"]
[White "Haznedaroglu, Kivanc"]
[Black "George Micheal, Kevin"]
[Result "1-0"]
[ECO "B95"]
[WhiteElo "2418"]
[BlackElo "2149"]
[Annotator "TA"]
[PlyCount "51"]
[EventDate "2023.05.16"]
[EventType "swiss"]
[EventCountry "UAE"]
[SourceTitle "playchess.com"]
[Source "ChessBase"]
[SourceQuality "1"]
[TimeControl "5400+30"]

{[%evp 16,51,23,8,99,95,96,47,165,164,239,228,1181,1171,1183,1171,1141,1160,1170,1164,1126,418,1122,1081,1753,1378,29988,29989,29989,29980,29993,29994,29994,29995,29995,29994,29994,29981]} 1. e4 {[%emt 0:00:02]} c5 {[%emt 0:00:23]} 2. Nf3 {[%emt 0:00:07]} d6 {[%emt 0:00:05]} 3. d4 {[%emt 0:00:09]} cxd4 {[%emt 0:00:04]} 4. Nxd4 {[%emt 0:00:09]} Nf6 {[%emt 0:00:06]} 5. Nc3 {[%emt 0:00:05]} a6 {[%emt 0:00:02]} 6. Bg5 {[%emt 0:00:39]} e6 {[%emt 0:02:15]} 7. Qf3 {[%emt 0:00:56]} Be7 {[%emt 0:02:38]} 8. O-O-O {[%emt 0:00:12]} Qc7 {[%emt 0:01:11] 8...Qc7 is better than 8...Nbd7.} 9. Qg3 {[%emt 0:00:15]} b5 {[%emt 0:07:51] [#] B95: Sicilian Najdorf: 6 Bg5 e6, unusual White 7th moves.} (9... Nbd7 $11 {remains equal.}) 10. Bxb5+ $1 $16 {[%emt 0:01:27]} axb5 {[%emt 0:03:52]} 11. Ndxb5 {[%emt 0:00:08]} Qc6 {[%emt 0:06:13]} (11... Qc5 $14 12. Be3 Qc6) 12. Nxd6+ $18 {[%emt 0:01:51]} Kf8 {[%emt 0:00:29]} (12... Bxd6 {was necessary.} 13. Rxd6 Qc4 14. Bxf6 gxf6) 13. e5 {[%emt 0:04:11]} Ng8 {[%emt 0:05:53]} (13... Nbd7 14. exf6 Nxf6) 14. Bxe7+ {[%emt 0:01:10]} Nxe7 {[%emt 0:24:22]} 15. Qf4 {[%emt 0:00:14][%csl Gd6][%cal Rf4f7] [#]} f5 $146 {[%emt 0:00:53]} ({Predecessor:} 15... Nf5 16. Nxf5 {1-0 De Arruda Filho,R-Gomes,C BRA-ch62 sf Florianopolis 1995 (2)}) 16. exf6 {[%emt 0:08:59]} Ng6 {[%emt 0:00:47]} 17. fxg7+ {[%emt 0:03:28]} Kxg7 {[%emt 0:00:17]} 18. Qf7+ {[%emt 0:00:43]} ({Not} 18. Qg5 Na6 19. h4 Qc5 $18) 18... Kh6 {[%emt 0:00:05] Hoping for ...Rf8.} 19. g4 {[%emt 0:00:43] Nce4 would kill now.} e5 {[%emt 0:14:34] [#]} 20. g5+ $1 {[%emt 0:03:03][%mdl 576] Decoy} Kxg5 {[%emt 0:05:56]} (20... Kh5 21. Rhg1) 21. Rhg1+ {[%emt 0:00:53] White mates.} Kh6 {[%emt 0:00:29]} 22. Qf6 {[%emt 0:00:06]} Qc7 {[%emt 0:04:13] [#]} 23. Rxg6+ $1 {[%emt 0:00:27][%mdl 576] Remove Defender} hxg6 {[%emt 0:00:18]} 24. Qxh8+ {[%emt 0:00:03]} Kg5 {[%emt 0:00:13]} 25. Qxe5+ {[%emt 0:00:10]} Kh6 {[%emt 0:00:19]} 26. Nf5+ {[%emt 0:00:08] A cool game by Haznedaroglu.   Weighted Error Value: White=0.01 (flawless) /Black=0.89} 1-0